bitfinex-derivatives/quotes_ETHF0:USTF0_20260120
["timestamp","ask_amount","ask_price","bid_price","bid_amount"]
[1768920436373,2.93452143,3062.7,3060.5,0.16349]
[1768920436574,3.09790143,3062.6,3060.4,5.167]
[1768920436773,3.09790143,3062.6,3060.4,8.21995742]
[1768920436971,0.16338,3062.5,3060.4,8.21995742]
[1768920437169,0.16338,3062.5,3060.5,0.76774883]
[1768920437371,0.16338,3062.5,3060.5,3.8232247]
[1768920437873,2.93452143,3062.3,3060.5,0.00251845]
[1768920438766,3.09792143,3062.3,3060.5,0.00251845]
[1768920438971,0.00418789,3063.3,3060.5,0.00251845]
[1768920438972,2.93452143,3062.8,3060.5,3.8232247]
[1768920439272,3.70227026,3062.7,3060.5,3.8232247]
[1768920439473,2.93452143,3062.6,3060.5,3.8232247]
[1768920439864,2.93452143,3062.6,3060.5,3.05547587]
[1768920440070,3.09790143,3062.5,3060.5,3.05547587]
[1768920440473,2.93452143,3062.2,3060.5,0.00251845]
[1768920440773,3.09794143,3061.8,3060.5,0.00251845]
[1768920441979,2.93452143,3062.2,3060.5,0.00251845]
[1768920442180,0.16338,3062.5,3060.7,0.76774883]
[1768920442481,3.70227026,3062.0,3060.5,0.00251845]
[1768920442669,0.1634,3062.1,3060.5,3.8232247]
[1768920442871,2.93452143,3062.5,3060.5,3.8232247]
[1768920443077,2.93452143,3062.4,3060.5,3.05547587]
[1768920443273,3.09791143,3062.3,3060.5,3.05547587]
[1768920443584,3.70227026,3062.1,3060.5,0.00251845]
[1768920443779,2.93452143,3062.0,3060.5,0.00251845]
[1768920443977,3.09793143,3062.0,3060.5,0.00251845]
[1768920444379,0.16342,3061.8,3060.5,0.00251845]
[1768920444876,2.93452143,3061.9,3060.5,0.00251845]
[1768920445076,2.93452143,3062.4,3060.5,0.00251845]
[1768920445276,2.93452143,3062.0,3060.5,0.00251845]
[1768920445579,3.09794143,3061.9,3060.5,0.00251845]
[1768920447183,0.76774883,3061.2,3059.3,6.32195742]
[1768920447385,3.09798143,3061.1,3059.3,3.05295742]
[1768920447583,0.76774883,3060.8,3058.8,7.33290189]
[1768920447785,0.76774883,3060.8,3058.8,3.05295742]
[1768920448179,2.93452143,3059.4,3057.2,3.05295742]
[1768920448493,2.93452143,3058.6,3057.2,0.00346078]
[1768920448679,0.00385675,3059.4,3057.5,3.05295742]
[1768920448886,2.93837818,3059.4,3057.5,3.05295742]
[1768920449082,0.00385675,3059.4,3057.5,3.05295742]
[1768920449388,0.16349,3060.5,3057.9,3.05295742]
[1768920449581,3.09801143,3060.5,3058.1,3.05295742]
[1768920449789,0.76774883,3060.2,3058.1,6.32195742]
[1768920450087,2.93452143,3060.1,3058.1,3.05295742]
[1768920450285,0.00242208,3060.1,3058.7,3.05295742]
[1768920450490,0.00242208,3060.1,3058.8,3.05295742]
[1768920450988,2.93694351,3060.1,3058.1,3.05295742]
[1768920451486,0.00242208,3060.1,3058.2,3.05295742]
[1768920451786,0.00242208,3060.1,3058.6,3.05295742]
[1768920451989,0.00242208,3060.1,3058.9,0.76774883]
[1768920452186,0.00242208,3060.1,3058.7,7.23983083]
[1768920452379,0.76774883,3059.8,3057.7,0.76774883]
[1768920452581,2.93452143,3059.7,3057.5,3.05295742]
[1768920452788,0.16352,3060.0,3057.7,0.76774883]
[1768920452977,0.00242208,3060.1,3058.5,3.82070625]
[1768920453186,0.00242208,3060.1,3058.7,3.05295742]
[1768920453793,0.00242208,3060.1,3058.7,4.95395742]
[1768920454095,0.00242208,3060.1,3058.9,3.82070625]
[1768920454295,0.00242208,3060.1,3058.9,3.05295742]
[1768920454790,0.76774883,3061.0,3058.6,3.27]
[1768920454791,2.93452143,3061.5,3059.3,0.76774883]
[1768920455090,2.93452143,3060.9,3059.1,1.901]
[1768920455694,2.93452143,3060.9,3058.8,3.27]
[1768920455891,2.93723948,3060.9,3058.8,3.27]
[1768920456282,0.76774883,3060.7,3058.9,4.27651758]
[1768920456504,0.76774883,3060.7,3058.7,3.27]
[1768920456505,2.93452143,3060.6,3058.7,3.27]
[1768920456798,2.93452143,3060.6,3057.3,22.894]
[1768920456799,2.93452143,3060.2,3058.1,3.27]
[1768920457006,0.76774883,3060.6,3058.4,3.82070625]
[1768920457306,2.93452143,3060.5,3058.4,3.05295742]
[1768920457604,0.76774883,3059.8,3057.8,3.21658742]
[1768920457791,2.93452143,3060.1,3057.9,0.76774883]
[1768920458199,2.93452143,3059.7,3057.5,3.27]
[1768920458612,2.93452143,3059.7,3057.4,3.27]
[1768920458905,2.93452143,3059.3,3057.4,3.27]
[1768920459100,2.93452143,3059.3,3057.2,0.00346078]
[1768920459299,2.93452143,3058.6,3057.2,0.00346078]
[1768920459501,2.93714686,3058.6,3057.2,0.00346078]
[1768920459802,3.70489569,3058.6,3057.2,0.00346078]
[1768920460007,2.93452143,3058.5,3057.2,0.00346078]
[1768920460212,0.76774883,3058.2,3056.0,3.05295742]
[1768920460394,0.76774883,3058.2,3055.0,0.01796527]
[1768920460395,2.93452143,3057.3,3055.0,0.01796527]
[1768920460603,2.93452143,3056.9,3055.0,0.01796527]
[1768920460899,2.93452143,3056.5,3055.0,0.01796527]
[1768920461404,3.70227026,3055.8,3053.6,3.3097054]
[1768920461704,3.70227026,3055.8,3053.4,0.76774883]
[1768920461705,2.93452143,3055.3,3052.9,3.05295742]
[1768920461904,2.93452143,3055.6,3053.5,0.76774883]
[1768920462106,2.93452143,3055.6,3053.5,3.82070625]
[1768920462411,0.00239424,3055.6,3054.3,3.82070625]
[1768920462706,0.00239424,3055.6,3054.3,3.05295742]
[1768920462909,0.00239424,3055.6,3054.4,0.76774883]
[1768920463209,0.00239424,3055.6,3054.3,3.05295742]
[1768920463397,3.05467715,3056.9,3054.9,0.76774883]
[1768920463599,0.76774883,3057.3,3054.9,3.95322188]
[1768920464001,3.21832715,3057.6,3055.3,0.76774883]
[1768920464200,0.76774883,3057.3,3055.0,4.28265427]
[1768920464406,3.05467715,3057.2,3054.7,3.95322188]
[1768920464608,3.05467715,3056.4,3054.3,0.76774883]
[1768920465104,3.05467715,3056.4,3054.0,3.95322188]
[1768920465302,3.05467715,3056.4,3054.0,3.18547305]
[1768920465503,0.1637,3056.6,3054.4,3.88405724]
[1768920466013,3.09787534,3057.0,3054.8,0.76774883]
[1768920466219,0.76774883,3056.9,3054.8,0.76774883]
[1768920466508,3.86562417,3056.2,3053.7,3.11630841]
[1768920466709,3.86562417,3056.2,3053.7,3.88405724]
[1768920467212,3.09787534,3056.2,3054.1,3.88405724]
[1768920467410,3.09787534,3055.7,3053.5,3.12020783]
[1768920467601,3.09787534,3055.7,3053.5,3.27689942]
[1768920467806,0.76774883,3054.5,3053.1,1.903]
[1768920468003,0.76774883,3054.5,3052.7,3.11630841]
[1768920468315,0.93153883,3054.9,3052.8,3.88405724]
[1768920468510,0.76774883,3054.9,3052.9,3.11630841]
[1768920468714,0.76774883,3055.3,3052.9,3.11630841]
[1768920469205,3.86918939,3055.3,3052.9,0.00230964]
[1768920469407,0.76774883,3054.3,3052.9,0.00230964]
[1768920469803,0.76774883,3054.1,3052.0,0.76774883]
[1768920470004,0.76774883,3054.5,3052.5,3.11630841]
[1768920470405,0.76774883,3054.1,3051.9,3.11630841]
[1768920470605,3.86562417,3054.1,3051.9,3.11630841]
[1768920470804,3.86562417,3054.1,3051.9,3.11944326]
[1768920471215,0.76774883,3053.3,3051.9,0.00313485]
[1768920471410,0.76774883,3054.1,3051.9,3.11944326]
[1768920471609,0.76774883,3054.5,3052.1,0.76774883]
[1768920471813,0.76774883,3054.5,3051.9,3.11944326]
[1768920472917,0.77336479,3054.6,3051.9,3.11944326]
[1768920473123,3.275,3054.6,3051.9,3.11944326]
[1768920473306,3.09787534,3054.1,3051.9,3.11944326]
[1768920473706,0.77336479,3053.7,3051.9,0.00313485]
[1768920474317,3.87124013,3053.7,3051.9,0.00313485]
[1768920475123,3.09787534,3054.3,3051.9,3.11944326]
[1768920475610,3.26171534,3054.1,3051.9,0.00313485]
[1768920475811,3.87124013,3053.7,3051.9,0.00313485]
[1768920476109,3.09787534,3053.4,3051.2,3.11630841]
[1768920476412,0.77336479,3052.4,3050.2,3.11630841]
[1768920476610,3.09787534,3052.8,3049.5,6.51334698]
[1768920476611,3.87124013,3051.9,3049.5,6.51334698]
[1768920476811,0.77336479,3052.8,3049.6,3.11630841]
[1768920476812,0.16396,3051.8,3049.6,3.11630841]
[1768920477012,0.16771883,3051.8,3049.6,3.12017816]
[1768920477217,0.00375883,3051.8,3049.6,3.12017816]
[1768920477606,0.16396,3051.7,3049.6,3.12017816]
[1768920477808,0.00375883,3051.8,3049.6,3.12017816]
[1768920477809,0.16771883,3051.8,3049.6,3.12017816]
[1768920478413,0.00375883,3051.8,3049.6,3.12017816]
[1768920478615,3.10163417,3051.8,3049.6,0.00386975]
[1768920478917,0.16397,3051.6,3049.6,3.12017816]
[1768920479320,0.00375883,3051.8,3049.6,3.12017816]
[1768920479321,0.00375883,3051.8,3049.6,3.28424816]
[1768920479730,3.26184534,3051.5,3049.6,0.00386975]
[1768920479911,0.16397,3051.6,3049.6,0.00386975]
[1768920480108,0.16397,3051.5,3049.6,0.00386975]
[1768920480311,0.16771883,3051.8,3049.6,3.12017816]
[1768920480714,0.00375883,3051.8,3049.8,3.11630841]
[1768920480913,0.16389,3053.1,3050.7,3.11630841]
[1768920481112,0.16389,3053.1,3049.9,5.181]
[1768920481113,0.16389,3053.1,3050.9,3.11630841]
[1768920481513,0.16385,3053.8,3051.3,3.11630841]
[1768920481818,3.278,3055.2,3052.6,3.11630841]
[1768920482120,3.87124013,3055.1,3052.9,3.11630841]
[1768920482322,3.87124013,3055.1,3052.6,0.00268014]
[1768920482516,0.16381,3054.5,3052.6,3.11898855]
[1768920482822,0.16382,3054.4,3052.6,3.11898855]
[1768920483021,0.00269003,3054.4,3052.7,0.1639]
[1768920483220,0.00269003,3054.4,3053.0,3.11630841]
[1768920483420,0.00269003,3054.4,3052.6,0.00268014]
[1768920483421,0.16384,3054.0,3052.6,0.00268014]
[1768920483618,0.00269003,3054.4,3052.6,3.11898855]
[1768920484017,0.16382,3054.3,3052.6,3.11898855]
[1768920484216,0.16383,3054.2,3052.6,3.11898855]
[1768920484610,0.00269003,3054.4,3052.6,3.11898855]
[1768920485217,0.00269003,3054.4,3052.6,0.00268014]
[1768920485417,3.87124013,3054.0,3051.2,6.39430841]
[1768920485823,3.09787534,3053.8,3051.2,6.39430841]
[1768920486120,3.87124013,3053.0,3050.4,3.11630841]
[1768920486624,0.16391,3052.7,3050.4,3.12037792]
[1768920487524,3.09787534,3053.0,3050.4,3.12037792]
[1768920487525,6.37587534,3053.0,3050.4,3.12037792]
[1768920487922,0.1639,3052.8,3050.4,3.12037792]
[1768920488124,0.16392,3052.5,3050.4,3.12037792]
[1768920488622,3.09787534,3052.9,3050.4,3.12037792]
[1768920488825,0.16389,3053.1,3050.4,3.12037792]
[1768920488826,3.09787534,3053.1,3050.4,0.00406951]
[1768920489019,0.16392,3052.5,3050.4,0.00406951]
[1768920489226,3.26179534,3052.5,3050.4,0.00406951]
[1768920490116,3.09787534,3053.2,3050.6,3.11630841]
[1768920490321,3.44188,3053.3,3050.6,3.11630841]
[1768920490525,3.44188,3053.3,3050.9,3.11630841]
[1768920490722,3.09787534,3052.4,3050.4,0.00406951]
[1768920490917,3.26181534,3052.2,3050.4,0.00406951]
[1768920491121,6.54376689,3052.2,3050.4,0.00406951]
[1768920491323,0.00295155,3052.2,3050.4,0.00406951]
[1768920491918,3.10082689,3052.2,3050.4,0.00406951]
[1768920492431,0.16397,3051.6,3050.4,0.00406951]
[1768920492931,3.09787534,3051.5,3050.4,0.00406951]
[1768920493140,3.09787534,3051.5,3047.4,3.11630841]
[1768920493141,0.56367907,3050.6,3047.4,3.11630841]
[1768920493429,0.56367907,3050.6,3047.9,3.83331042]
[1768920493430,0.16404,3050.3,3047.9,3.83331042]
[1768920493731,3.279,3050.4,3047.9,3.83331042]
[1768920493929,0.16406,3049.8,3047.9,3.83331042]
[1768920494130,0.60674981,3049.8,3047.2,3.11630841]
[1768920494331,0.16411,3049.0,3047.5,6.57877397]
[1768920494527,0.00311912,3049.8,3047.5,6.57877397]
[1768920494528,0.67727791,3049.7,3047.5,3.46246556]
[1768920494725,0.16412,3048.8,3047.5,2.78518838]
[1768920494926,3.279,3049.6,3044.4,3.79042891]
[1768920495128,0.16419,3047.4,3045.5,0.00358246]
[1768920495334,0.16685868,3047.4,3045.5,0.00358246]
[1768920495629,0.1642,3047.3,3045.5,0.00358246]
[1768920495837,0.16423,3046.8,3045.5,0.00358246]
[1768920496130,0.16423,3046.8,3044.4,3.71742891]
[1768920496321,0.00266868,3047.4,3044.4,3.71742891]
[1768920496322,0.16424,3046.6,3044.4,3.71742891]
[1768920496726,0.00266868,3047.4,3044.4,9.79316867]
[1768920496921,3.28266868,3047.4,3044.4,3.72059299]
[1768920497336,0.16424,3046.5,3044.4,3.72059299]
[1768920497835,0.16427,3046.0,3044.4,0.43016408]
[1768920498134,0.00266868,3047.4,3044.4,0.43016408]
[1768920498135,3.281,3046.6,3044.4,3.72059299]
[1768920498336,0.16425,3046.3,3044.4,0.43016408]
[1768920498531,0.16434,3044.8,3043.4,3.59331956]
[1768920499233,3.282,3044.7,3043.4,3.59331956]
[1768920499538,1.07408413,3045.8,3043.5,3.29042891]
[1768920499539,0.16428,3045.8,3043.5,3.29042891]
[1768920499734,0.16428,3045.8,3044.3,3.29042891]
[1768920500034,0.1643,3045.5,3044.3,3.29042891]
[1768920500332,3.282,3045.4,3043.5,3.29042891]
[1768920500531,1.826,3046.1,3043.5,3.29042891]
[1768920500731,1.03242713,3045.8,3043.4,3.59746217]
[1768920501236,0.00637499,3045.6,3043.4,3.59108783]
[1768920501437,0.16439,3044.1,3043.4,3.59108783]
[1768920501938,0.16439,3044.1,3041.2,0.72437219]
[1768920501939,0.05,3040.0,3039.2,3.29042891]
[1768920502139,1.03242713,3041.5,3038.6,3.29042891]
[1768920502439,1.03242713,3041.5,3035.8,1.03242713]
[1768920502440,0.16453,3041.5,3039.5,3.29042891]
[1768920502841,0.16456,3040.9,3039.4,7.01460246]
[1768920503138,1.03242713,3042.3,3037.4,3.78960055]
[1768920503139,0.16457,3040.7,3037.4,3.78960055]
[1768920503340,0.16458,3040.6,3037.4,3.78960055]
[1768920503539,3.285,3041.3,3037.9,4.21600748]
[1768920503832,0.0029247,3041.3,3037.9,9.91652275]
[1768920504140,0.16443,3043.4,3039.2,0.16465]
[1768920504331,0.16449,3042.2,3038.0,1.03242713]
[1768920504641,0.16449,3042.1,3039.3,4.32268093]
[1768920504833,4.36717303,3042.2,3038.6,3.285]
[1768920505030,0.16449,3042.3,3038.6,3.285]
[1768920505237,0.00343745,3042.3,3039.7,3.29042891]
[1768920505537,0.00343745,3042.3,3040.4,3.29042891]
[1768920505842,0.00343745,3042.3,3040.4,0.00335849]
[1768920506143,0.16451,3041.9,3040.4,0.00335849]
[1768920507239,0.16451,3041.9,3040.4,10.9622208]
[1768920507435,0.00343745,3042.3,3040.4,3.2937874]
[1768920507636,0.1644,3043.9,3041.7,3.29042891]
[1768920507939,0.16434,3044.9,3042.4,3.29042891]
[1768920508135,0.16434,3044.9,3043.2,3.29042891]
[1768920508343,0.16434,3044.9,3043.6,10.95886231]
[1768920508636,1.03242713,3043.9,3041.7,4.25390632]
[1768920508839,0.16446,3042.9,3040.6,3.29042891]
[1768920509143,0.1644,3043.9,3041.7,3.29042891]
[1768920509339,0.1644,3043.9,3041.9,3.29042891]
[1768920509540,0.16681583,3044.9,3042.3,3.29042891]
[1768920509746,2.57016797,3049.1,3043.6,3.29042891]
[1768920510038,2.57016797,3049.1,3043.8,3.29042891]
[1768920510039,1.03242713,3046.8,3043.8,3.29042891]
[1768920510240,1.03242713,3046.8,3043.7,5.197]
[1768920510241,0.16425,3046.7,3044.0,3.29042891]
[1768920510440,0.16425,3046.7,3044.2,3.29042891]
[1768920510639,0.16425,3046.7,3044.1,5.197]
[1768920510640,0.16425,3046.7,3044.8,3.29042891]
[1768920510842,0.00282304,3046.7,3044.9,3.29042891]
[1768920511040,0.00282304,3046.7,3045.2,3.29042891]
[1768920511234,0.00282304,3046.7,3044.8,0.00375025]
[1768920511235,0.16428,3046.2,3044.8,0.00375025]
[1768920511433,0.16428,3046.2,3044.8,3.29417916]
[1768920511738,0.00282304,3046.7,3043.6,15.2]
[1768920511739,0.00282304,3046.7,3044.5,3.29042891]
[1768920511947,0.00282304,3046.7,3042.2,0.16449]
[1768920511948,0.00282304,3046.7,3043.8,3.29042891]
[1768920512145,0.16429,3045.9,3043.8,3.29042891]
[1768920512344,0.00282304,3046.7,3044.5,3.29042891]
[1768920512547,0.00282304,3046.7,3044.8,3.29042891]
[1768920512737,0.00282304,3046.7,3045.0,3.29042891]
[1768920512934,0.00282304,3046.7,3044.9,10.95886231]
[1768920512935,0.00282304,3046.7,3045.1,3.29042891]
[1768920513451,0.00282304,3046.7,3045.2,14.24929122]
[1768920513744,0.00282304,3046.7,3045.3,3.29042891]
[1768920514150,0.00282304,3046.7,3043.3,3.29042891]
[1768920514346,0.16428,3046.1,3044.2,3.29042891]
[1768920514645,0.16429,3046.0,3044.2,3.29042891]
[1768920515145,0.16429,3045.9,3044.4,3.29042891]
[1768920515348,0.1643,3045.8,3044.4,3.29042891]
[1768920515933,0.00282304,3046.7,3044.9,3.29042891]
[1768920516549,0.1643,3045.8,3044.9,3.29042891]
[1768920517245,0.16433,3045.2,3044.2,0.00361299]
[1768920517546,0.16433,3045.2,3044.2,3.2940419]
[1768920517752,0.16433,3045.2,3044.5,10.95886231]
[1768920517940,0.16433,3045.2,3044.2,3.2940419]
[1768920518548,1.03242713,3046.4,3043.5,3.29042891]
[1768920518549,0.16436,3044.6,3043.5,3.29042891]
[1768920518845,0.16437,3044.4,3043.5,3.29042891]
[1768920519050,3.287,3045.2,3041.8,6.57742891]
[1768920519240,0.16439,3044.1,3042.1,3.29042891]
[1768920519450,0.16429,3045.9,3044.1,3.29042891]
[1768920519757,0.16683726,3045.9,3044.2,3.29042891]
[1768920520045,0.16683726,3045.9,3044.6,3.29042891]
[1768920520345,0.16431,3045.5,3044.6,3.29323633]
[1768920520550,0.16431,3045.5,3040.4,4.0440768]
[1768920520551,0.00254726,3045.9,3043.2,3.29042891]
[1768920520743,4.31942713,3045.8,3043.2,3.29042891]
[1768920520943,0.16438,3044.3,3043.2,3.29042891]
[1768920521341,4.31942713,3045.8,3043.7,3.29042891]
[1768920521538,0.16435,3044.9,3043.7,3.29405041]
[1768920521739,0.16435,3044.9,3043.8,3.29042891]
[1768920522040,0.1643,3045.8,3044.4,10.95886231]
[1768920522239,0.00254726,3045.9,3043.7,3.29405041]
[1768920522845,0.16433,3045.2,3043.7,3.29405041]
[1768920523144,0.00254726,3045.9,3044.2,3.29042891]
[1768920523344,0.1643,3045.7,3044.2,3.29042891]
[1768920523550,0.1643,3045.7,3044.7,3.35600266]
[1768920523846,0.00254726,3045.9,3044.8,3.35600266]
[1768920524047,0.00254726,3045.9,3044.9,14.31486497]
[1768920524346,0.00254726,3045.9,3044.9,3.35600266]
[1768920524551,0.00254726,3045.9,3045.3,10.95886231]
[1768920524753,0.1643,3045.8,3044.5,3.35600266]
[1768920524942,0.1643,3045.7,3044.5,3.35600266]
[1768920525142,0.00254726,3045.9,3044.5,3.35600266]
[1768920525344,0.00254726,3045.9,3043.8,3.42899435]
[1768920525542,1.03242713,3045.0,3043.0,3.42899435]
[1768920525848,0.16441,3043.8,3041.2,0.16454]
[1768920526155,0.1644,3043.9,3041.5,10.95886231]
[1768920526346,3.55572685,3044.9,3041.6,5.198]
[1768920526544,3.55572685,3044.9,3041.6,5.20162967]
[1768920526743,0.16435,3044.9,3041.7,4.33572696]
[1768920527048,0.16435,3044.9,3042.4,0.16448]
[1768920527247,0.16435,3044.9,3043.1,10.95886231]
[1768920527439,0.16435,3044.9,3041.6,0.00362967]
[1768920527440,0.16436,3044.6,3042.5,4.33572696]
[1768920527657,0.16436,3044.6,3042.2,3.42899435]
[1768920527843,3.55572685,3045.7,3043.0,3.42899435]
[1768920528044,0.16437,3044.4,3043.0,3.42899435]
[1768920528455,3.55572685,3045.5,3043.0,3.42899435]
[1768920528655,3.55572685,3044.9,3042.3,3.42899435]
[1768920529151,3.55572685,3044.9,3040.4,0.16458]
[1768920529152,0.16445,3043.0,3041.6,3.43262402]
[1768920529341,0.0033633,3043.0,3041.6,3.43262402]
[1768920529544,0.1644,3043.9,3042.5,10.95886231]
[1768920529744,0.1644,3043.9,3042.1,3.288]
[1768920530053,0.16441,3043.7,3042.3,10.95886231]
[1768920530250,0.16441,3043.7,3042.2,3.42899435]
[1768920530447,0.16811061,3043.7,3042.6,10.95886231]
[1768920530646,0.16811061,3043.7,3042.8,10.95886231]
[1768920530961,0.16437,3044.4,3043.0,3.42899435]
[1768920531251,0.16437,3044.4,3041.6,0.00362967]
[1768920531252,0.16448,3042.4,3041.6,9.67e-06]
[1768920531647,1.03242713,3044.5,3041.6,3.42900402]
[1768920531849,3.55572685,3044.7,3041.8,3.42899435]
[1768920532154,0.16442,3043.5,3041.9,8.62899435]
[1768920532347,0.16442,3043.5,3042.0,3.42899435]
[1768920532548,0.16442,3043.5,3042.8,10.95886231]
[1768920532754,0.16443,3043.4,3042.4,3.288]
[1768920532955,0.16443,3043.4,3042.0,3.42899435]
[1768920533151,1.03839997,3043.3,3041.6,9.67e-06]
[1768920533359,1.03839997,3042.8,3041.6,9.67e-06]
[1768920533547,1.03839997,3042.3,3040.8,3.42899435]
[1768920533748,3.55572685,3044.3,3041.7,3.42899435]
[1768920533944,1.03839997,3043.5,3041.7,3.42899435]
[1768920534458,0.16447,3042.7,3041.1,3.42899435]
[1768920534759,0.00362942,3042.7,3041.1,3.43202775]
[1768920535059,0.16443,3043.4,3042.0,3.42899435]
[1768920535556,0.16443,3043.4,3042.6,10.02336152]
[1768920535861,1.03839997,3044.0,3042.6,10.02336152]
[1768920536151,1.04259351,3044.0,3038.9,5.6926183]
[1768920536360,0.16442,3043.5,3040.8,0.16456]
[1768920536555,3.55572685,3043.0,3041.2,4.11296791]
[1768920536855,1.03839997,3042.1,3037.8,0.26168066]
[1768920537062,0.16453,3041.4,3038.8,1.03839997]
[1768920537260,0.16775992,3041.4,3039.1,4.20091693]
[1768920537456,0.16775992,3041.4,3040.2,10.02336152]
[1768920537670,2.18697036,3043.0,3038.8,1.04187091]
[1768920537867,1.03839997,3042.8,3040.3,4.62325023]
[1768920538059,1.03839997,3042.8,3040.3,3.289]
[1768920538258,0.16448,3042.4,3041.1,10.02336152]
[1768920538564,0.16448,3042.4,3040.9,10.02336152]
[1768920538763,0.16449,3042.2,3041.2,10.02336152]
[1768920538952,0.16449,3042.2,3040.9,0.00297908]
[1768920538953,0.16449,3042.2,3041.6,10.02336152]
[1768920539156,0.0034065,3042.4,3041.6,10.02336152]
[1768920539361,0.0034065,3042.4,3041.9,10.02336152]
[1768920539568,0.0034065,3042.4,3040.9,0.00297908]
[1768920539756,0.1645,3042.0,3040.9,0.00297908]
[1768920539953,0.1645,3042.0,3040.9,9.3339406]
[1768920540159,0.1645,3042.0,3041.2,9.33096152]
[1768920540459,0.0034065,3042.4,3040.9,0.00297908]
[1768920540660,0.0034065,3042.4,3041.6,9.33096152]
[1768920540862,0.0034065,3042.4,3042.0,9.33096152]
[1768920541169,0.0034065,3042.4,3040.9,0.00297908]
[1768920541371,0.0034065,3042.4,3041.5,9.33096152]
[1768920541570,0.0034065,3042.4,3040.9,0.00297908]
[1768920541765,3.55913335,3042.4,3039.6,3.42899435]
[1768920542066,0.16452,3041.7,3039.6,3.42899435]
[1768920542367,3.55913335,3042.4,3039.8,3.59361435]
[1768920542671,3.55913335,3042.4,3039.8,3.42899435]
[1768920542672,0.16451,3041.8,3039.8,3.42899435]
[1768920542873,3.72361335,3042.4,3039.8,3.43273471]
[1768920543074,0.0034065,3042.4,3040.7,1.80266076]
[1768920543380,0.16438,3044.3,3041.1,1.03839997]
[1768920543565,3.55572685,3044.4,3041.1,1.03839997]
[1768920543566,0.16438,3044.2,3041.2,6.563]
[1768920543769,3.55572685,3044.4,3041.6,4.31139997]
[1768920543966,3.55572685,3044.4,3041.6,1.20291997]
[1768920544172,0.16444,3043.1,3041.7,4.31130362]
[1768920544373,3.55572685,3043.1,3041.0,1.914]
[1768920544579,1.03839997,3042.6,3040.6,1.914]
[1768920544778,3.55572685,3043.1,3040.6,1.914]
[1768920545180,3.55572685,3043.1,3040.9,0.16456]
[1768920545181,3.72016685,3043.1,3040.9,0.16456]
[1768920545370,0.16444,3043.1,3040.7,7.20665249]
[1768920545576,0.16444,3043.1,3040.8,2.93329234]
[1768920545774,3.55572685,3043.6,3040.7,4.27336015]
[1768920546078,3.55572685,3041.8,3038.6,2.93329234]
[1768920546273,0.16455,3041.2,3039.0,0.16466]
[1768920546471,0.16455,3041.1,3039.0,0.16466]
[1768920546679,0.16455,3041.1,3039.1,5.204]
[1768920546881,3.55572685,3041.5,3039.1,9.44895021]
[1768920547082,0.16722725,3041.8,3039.4,0.16464]
[1768920547279,3.5584441,3041.8,3039.4,0.00337962]
[1768920547486,0.16455,3041.1,3039.5,3.29]
[1768920547777,1.03839997,3040.2,3037.7,3.29]
[1768920547971,0.16463,3039.7,3037.8,1.913]
[1768920548278,0.16463,3039.7,3037.3,0.16475]
[1768920548481,3.55572685,3038.6,3037.1,3.29]
[1768920548780,0.00266994,3038.6,3037.4,3.79309421]
[1768920549177,3.55572685,3040.1,3037.4,8.16676062]
[1768920549379,3.55572685,3040.1,3037.7,0.16473]
[1768920549574,3.55572685,3040.1,3037.8,20.404]
[1768920549876,3.55572685,3039.9,3037.8,4.19843823]
[1768920550081,3.55910035,3039.9,3037.4,2.16676062]
[1768920550270,3.55910035,3039.9,3037.5,5.205]
[1768920550473,3.55910035,3039.9,3037.6,3.291]
[1768920550674,1.03839997,3039.3,3037.4,2.16676062]
[1768920550876,3.55572685,3038.7,3037.4,2.16676062]
[1768920551276,3.55572685,3039.6,3038.0,0.04503215]
[1768920551477,3.72035685,3039.6,3038.0,0.04503215]
[1768920551677,0.0033735,3039.9,3038.0,0.04503215]
[1768920551678,3.55572685,3039.2,3038.0,0.04503215]
[1768920551878,3.72037685,3039.2,3038.0,0.04503215]
[1768920552277,3.60037927,3038.6,3037.4,0.54042703]
[1768920553189,0.0033735,3039.9,3037.4,0.54042703]
[1768920553382,3.55910035,3039.9,3037.5,5.207]
[1768920553583,3.55910035,3039.9,3037.4,0.70517703]
[1768920553784,3.55572685,3039.7,3037.4,0.70517703]
[1768920554293,4.59412682,3039.1,3037.4,0.54042703]
[1768920554489,3.55572685,3039.0,3037.4,0.54042703]
[1768920554989,1.03839997,3039.2,3037.4,0.54042703]
[1768920555190,3.67010044,3038.6,3037.4,0.54042703]
[1768920555396,3.67010044,3038.6,3036.5,2.37088344]
[1768920555597,3.67010044,3038.6,3036.5,2.53568344]
[1768920555796,3.67010044,3038.6,3035.7,0.16484]
[1768920555987,4.70850041,3038.1,3036.0,0.16482]
[1768920556294,3.67010044,3038.0,3036.0,0.00318386]
[1768920556690,3.67010044,3038.7,3036.6,0.16479]
[1768920556892,1.03839997,3038.3,3036.4,3.292]
[1768920557285,1.03839997,3039.3,3036.5,4.23043251]
[1768920557483,3.67010044,3039.2,3036.5,4.39523251]
[1768920557693,3.67010044,3039.2,3036.6,5.208]
[1768920558000,3.67010044,3039.0,3036.0,0.00318386]
[1768920558296,4.70850041,3038.3,3036.1,3.293]
[1768920558497,4.70850041,3038.3,3036.1,1.66666641]
[1768920558691,3.293,3039.2,3036.2,4.27195237]
[1768920558692,3.67010044,3038.9,3036.2,4.27195237]
[1768920558997,3.67010044,3038.9,3036.4,0.1648]
[1768920559295,3.67010044,3038.3,3036.4,0.00385794]
[1768920559490,3.83482044,3037.9,3036.4,0.00385794]
[1768920559690,3.67010044,3037.7,3036.4,0.00385794]
[1768920559884,3.67264563,3037.7,3036.4,0.00385794]
[1768920560092,0.16476,3037.3,3036.4,0.00385794]
[1768920560392,3.83487044,3037.1,3036.4,0.00385794]
[1768920560596,3.83487044,3037.1,3035.6,3.793]
[1768920560900,3.83487044,3037.1,3035.6,0.5]
[1768920561199,3.83485044,3037.4,3035.6,0.5]
[1768920561410,3.67010044,3037.4,3035.4,2.89354396]
[1768920561591,3.67010044,3037.4,3035.4,6.18895397]
[1768920561793,3.67010044,3037.4,3035.4,2.73110397]
[1768920561991,3.67010044,3037.0,3035.4,2.73110397]
[1768920562499,3.67010044,3036.4,3035.4,2.73110397]
[1768920562897,3.67010044,3036.4,3034.7,3.293]
[1768920563292,3.67010044,3036.4,3033.7,0.16495]
[1768920563695,3.67010044,3036.0,3033.9,3.294]
[1768920563896,3.83489044,3036.6,3033.9,4.33239997]
[1768920564101,3.67010044,3036.4,3034.5,0.73515059]
[1768920564297,1.03839997,3036.4,3034.5,0.73515059]
[1768920564497,3.67010044,3036.1,3034.5,0.73515059]
[1768920564890,3.83488044,3036.8,3034.5,0.73515059]
[1768920565092,3.67010044,3036.8,3034.5,0.73515059]
[1768920565401,0.00254519,3037.7,3035.4,3.71140492]
[1768920565402,0.16727519,3037.7,3035.4,3.71140492]